fUSD/lending_fUSD_20250608
["ID","MTS","AMOUNT","RATE_DAILY","PERIOD"]
[364995799,1749387047094,-2202.69,0.00019835,2]
[364995801,1749387047104,-480.0,0.00019835,2]
[364995803,1749387047113,-450.55160715,0.00019835,2]
[364995805,1749387047123,-756.95,0.00019835,2]
[364995807,1749387047132,-480.0,0.00019835,2]
[364995810,1749387047143,-480.0,0.00019835,2]
[364995812,1749387047154,-480.0,0.00019835,2]
[364995814,1749387047164,-480.0,0.00019835,2]
[364995816,1749387047174,-525.48,0.00019835,2]
[364995818,1749387047183,-480.0,0.00019835,2]
[364995820,1749387047193,-945.12,0.00019835,2]
[364995821,1749387047203,-497.31,0.00019835,2]
[364995823,1749387047212,-480.0,0.00019835,2]
[364995826,1749387047222,-480.0,0.00019835,2]
[364995828,1749387047232,-1211.19,0.00019835,2]
[364995830,1749387047241,-480.0,0.00019835,2]
[364995832,1749387047251,-480.0,0.00019835,2]
[364995834,1749387047260,-3341.69,0.00019835,2]
[364995835,1749387047270,-39016.1,0.00019835,2]
[364995837,1749387047279,-480.0,0.00019835,2]
[364995839,1749387047289,-480.0,0.00019835,2]
[364995841,1749387047299,-1733.6,0.00019835,2]
[364995843,1749387047308,-480.0,0.00019835,2]
[364995845,1749387047318,-3008.79,0.00019835,2]
[364995848,1749387047327,-751.49,0.00019835,2]
[364995849,1749387047337,-480.0,0.00019835,2]
[364995851,1749387047346,-480.0,0.00019835,2]
[364995853,1749387047355,-480.0,0.00019835,2]
[364995855,1749387047365,-480.0,0.00019835,2]
[364995858,1749387047375,-2191.96,0.00019835,2]
[364995860,1749387047384,-569.14,0.00019835,2]
[364995862,1749387047394,-480.0,0.00019835,2]
[364995864,1749387047403,-480.0,0.00019835,2]
[364995866,1749387047413,-480.0,0.00019835,2]
[364995867,1749387047423,-597.34,0.00019835,2]
[364995869,1749387047433,-609.81,0.00019835,2]
[364995871,1749387047443,-161.31761,0.00019876,4]
[364995873,1749387047453,-171.24908528,0.00019879,2]
[364995875,1749387047463,-150.0,0.00019879,2]
[364995877,1749387047473,-161.5491588,0.00019889,2]
[364995879,1749387047483,-800.0,0.00019898,2]
[364995882,1749387047498,-800.0,0.00019898,2]
[364995884,1749387047507,-800.0,0.00019898,2]
[364995886,1749387047517,-800.0,0.00019898,2]
[364995888,1749387047527,-800.0,0.00019898,2]
[364995890,1749387047537,-800.0,0.00019898,2]
[364995892,1749387047547,-800.0,0.00019898,2]
[364995894,1749387047557,-800.0,0.00019898,2]
[364995896,1749387047566,-800.0,0.00019898,2]
[364995898,1749387047576,-800.0,0.00019898,2]
[364995900,1749387047586,-4945.90007962,0.000199,2]
[364995902,1749387047595,-6710.64,0.000199,2]
[364995904,1749387047605,-999.07919481,0.000199,2]
[364995905,1749387047615,-108383.50437667,0.000199,2]
[364995906,1749387047624,-151.0,0.000199,2]
[364995907,1749387047635,-151.0,0.000199,2]
[364995908,1749387047644,-169.63001658,0.000199,2]
[364995909,1749387047654,-2387.93272801,0.000199,2]
[364995910,1749387047664,-164.55644163,0.000199,2]
[364995911,1749387047674,-3184.8723555,0.000199,2]
[364995912,1749387047684,-321.462944,0.000199,2]
[364995913,1749387047694,-321.462944,0.000199,2]
[364995914,1749387047704,-151.0,0.000199,2]
[364995915,1749387047714,-150.0,0.00019906,2]
[364995916,1749387047724,-161.31761,0.00019931,4]
[364995918,1749387047734,-150.0,0.00019934,2]
[364995920,1749387047744,-16000.0,0.0001995,2]
[364995922,1749387047755,-150.0,0.00019961,2]
[364995924,1749387047765,-150.0,0.00019973,4]
[364995926,1749387047775,-202.00162261,0.00019973,4]
[364995928,1749387047784,-150.0,0.00019973,4]
[364995930,1749387047794,-159.24789843,0.00019973,4]
[364995932,1749387047803,-150.0,0.00019973,4]
[364995934,1749387047813,-150.0,0.00019973,4]
[364995936,1749387047823,-150.0,0.00019973,4]
[364995938,1749387047833,-150.0,0.00019973,4]
[364995940,1749387047843,-150.0,0.00019973,4]
[364995942,1749387047852,-150.0,0.00019973,4]
[364995944,1749387047862,-150.0,0.00019973,4]
[364995946,1749387047872,-150.0,0.00019973,4]
[364995948,1749387047881,-150.0,0.00019973,4]
[364995950,1749387047891,-150.0,0.00019973,4]
[364995952,1749387047901,-500.0,0.00019973,2]
[364995954,1749387047910,-500.0,0.00019973,2]
[364995956,1749387047920,-511.68700359,0.00019973,2]
[364995958,1749387047930,-213.47102298,0.00019979,2]
[364995960,1749387047940,-202.00162261,0.00019982,4]
[364995962,1749387047949,-159.24789843,0.00019982,4]
[364995964,1749387047959,-150.0,0.00019984,4]
[364995966,1749387047969,-151.0,0.00019986,2]
[364995968,1749387047978,-151.0,0.00019986,2]
[364995970,1749387047988,-151.0,0.00019986,2]
[364995972,1749387047997,-151.0,0.00019986,2]
[364995974,1749387048008,-334.5736712,0.00019986,2]
[364995976,1749387048018,-383.6551438,0.00019986,2]
[364995977,1749387048027,-432.7366164,0.00019986,2]
[364995979,1749387048037,-481.8180891,0.00019986,2]
[364995981,1749387048047,-530.8995617,0.00019986,2]
[364995982,1749387048057,-151.0,0.00019986,2]
[364995984,1749387048067,-2757.4357544,0.00019986,2]
[364995986,1749387048078,-2798.7110186,0.00019986,2]
[364995988,1749387048088,-2839.9862829,0.00019986,2]
[364995990,1749387048098,-2881.2615471,0.00019986,2]
[364995992,1749387048108,-2922.5368114,0.00019986,2]
[364995994,1749387048118,-1344.9170895,0.00019986,2]
[364995996,1749387048127,-1645.2558127,0.00019986,2]
[364995998,1749387048137,-1945.5945359,0.00019986,2]
[364995999,1749387048150,-2245.933259,0.00019986,2]
[364996001,1749387048160,-2546.2719822,0.00019986,2]
[364996003,1749387048170,-161.31761,0.00019987,4]
[364996005,1749387048180,-1584.38403661,0.00019988,2]
[364996007,1749387048191,-500.0,0.00019988,2]
[364996009,1749387048200,-500.0,0.00019988,2]
[364996011,1749387048210,-500.0,0.00019988,2]
[364996013,1749387048222,-500.0,0.00019988,2]
[364996015,1749387048232,-500.0,0.00019988,2]
[364996017,1749387048242,-150.0,0.00019989,2]
[364996019,1749387048252,-800.99006632,0.00019989,2]
[364996021,1749387048262,-465302.91251863,0.00019989,2]
[364996721,1749387629807,200.00000001,0.00017,2]
[364996722,1749387780671,311.0,0.000165,7]
[364996723,1749387955557,244.97,0.00013699,2]
[364996725,1749388000400,497.65,0.00016358,2]
[364996726,1749388231739,-211.0,0.00017373,2]
[364996727,1749388231749,-600.0,0.00018063,4]
[364996728,1749388231758,-389.0,0.00018074,2]
[364996729,1749388231851,-3325.02917733,0.00018074,2]
[364996730,1749388231860,-1000.0,0.00018369,2]
[364996731,1749388231870,-497.65,0.00018622,2]
[364996732,1749388231879,-1200.0,0.00018913,2]
[364996733,1749388231888,-1000.238,0.00018914,2]
[364996734,1749388231897,-654.896,0.00018914,2]
[364996735,1749388231907,-300.0,0.00018997,2]
[364996736,1749388231916,-300.0,0.00018997,2]
[364996737,1749388231925,-277.78,0.00019,2]
[364996738,1749388231934,-277.78,0.00019,2]
[364996739,1749388231943,-277.78,0.00019,2]
[364996740,1749388231953,-277.78,0.00019,2]
[364996741,1749388231963,-277.78,0.00019,2]
[364996742,1749388231973,-300.49,0.00019,2]
[364996743,1749388231983,-301.21,0.00019,2]
[364996744,1749388231992,-303.3,0.00019,2]
[364996745,1749388232001,-301.32,0.00019,2]
[364996746,1749388232010,-305.04,0.00019,2]
[364996747,1749388232019,-303.37,0.00019,2]
[364996748,1749388232029,-300.61,0.00019,2]
[364996749,1749388232038,-300.48,0.00019,2]
[364996750,1749388232047,-207.4,0.00019002,2]
[364996751,1749388232057,-494.24,0.00019014,2]
[364996752,1749388232066,-504.0,0.00019151,2]
[364996753,1749388232075,-151.0,0.00019166,2]
[364996754,1749388232085,-500.0,0.00019166,2]
[364996755,1749388232094,-480.0,0.00019178,2]
[364996756,1749388232103,-329.86331225,0.00019178,2]
[364996757,1749388232112,-480.0,0.00019178,2]
[364996758,1749388232122,-480.0,0.00019178,2]
[364996759,1749388232132,-1735.3,0.00019178,2]
[364996760,1749388232141,-480.0,0.00019178,2]
[364996761,1749388232150,-480.0,0.00019178,2]
[364996762,1749388232159,-480.0,0.00019178,2]
[364996763,1749388232169,-480.0,0.00019178,2]
[364996764,1749388232179,-480.0,0.00019178,2]
[364996765,1749388232188,-895.39,0.00019178,2]
[364996766,1749388232197,-480.0,0.00019178,2]
[364996767,1749388232207,-303.07802041,0.00019178,2]
[364996768,1749388232216,-480.0,0.00019178,2]
[364996769,1749388232226,-480.0,0.00019178,2]
[364996770,1749388232235,-480.0,0.00019178,2]
[364996771,1749388232245,-398.94295855,0.00019178,2]
[364996772,1749388232257,-81.05704145,0.00019178,2]
[364996773,1749388232266,-250.09147223,0.00019178,2]
[364996774,1749388232279,-229.90852777,0.00019178,2]
[364996775,1749388232289,-442.18147023,0.00019178,2]
[364997303,1749388237926,-1018.72793796,0.00018914,2]
[364997308,1749388237982,-163.26106204,0.00018914,2]
[364997310,1749388237991,-37.81852977,0.00019178,2]
[364997312,1749388238001,-1792.35,0.00019178,2]
[364997313,1749388238010,-480.0,0.00019178,2]
[364997315,1749388238019,-480.0,0.00019178,2]
[364997317,1749388238028,-570.40981573,0.00019178,2]
[364997318,1749388238037,-778.86,0.00019178,2]
[364997320,1749388238047,-480.0,0.00019178,2]
[364997322,1749388238056,-480.0,0.00019178,2]
[364997323,1749388238066,-1065.98,0.00019178,2]
[364997325,1749388238075,-480.0,0.00019178,2]
[364997327,1749388238085,-480.0,0.00019178,2]
[364997328,1749388238094,-495.19,0.00019178,2]
[364997330,1749388238104,-1929.26,0.00019178,2]
[364997332,1749388238113,-480.0,0.00019178,2]
[364997334,1749388238123,-480.0,0.00019178,2]
[364997335,1749388238132,-1743.8,0.00019178,2]
[364997337,1749388238142,-382.60677489,0.00019178,2]
[364997338,1749388238151,-840.89,0.00019178,2]
[364997340,1749388238160,-480.0,0.00019178,2]
[364997342,1749388238169,-480.0,0.00019178,2]
[364997344,1749388238179,-480.0,0.00019178,2]
[364997345,1749388238189,-480.0,0.00019178,2]
[364997347,1749388238198,-480.0,0.00019178,2]
[364997349,1749388238207,-480.0,0.00019178,2]
[364997350,1749388238216,-480.0,0.00019178,2]
[364997352,1749388238226,-480.0,0.00019178,2]
[364997354,1749388238236,-748.22,0.00019178,2]
[364997355,1749388238247,-480.0,0.00019178,2]
[364997357,1749388238256,-2645.5,0.00019178,2]
[364997359,1749388238266,-1381.4,0.00019178,2]
[364997361,1749388238275,-480.0,0.00019178,2]
[364997362,1749388238285,-958.86,0.00019178,2]
[364997364,1749388238294,-480.0,0.00019178,2]
[364997366,1749388238303,-480.0,0.00019178,2]
[364997367,1749388238313,-480.0,0.00019178,2]
[364997369,1749388238323,-30937.52,0.00019178,2]
[364997371,1749388238332,-480.0,0.00019178,2]
[364997372,1749388238341,-480.0,0.00019178,2]
[364997374,1749388238350,-1384.98,0.00019178,2]
[364997376,1749388238360,-480.0,0.00019178,2]
[364997377,1749388238370,-480.0,0.00019178,2]
[364997379,1749388238379,-480.0,0.00019178,2]
[364997381,1749388238388,-594.93,0.00019178,2]
[364997383,1749388238397,-480.0,0.00019178,2]
[364997385,1749388238407,-480.0,0.00019178,2]
[364997386,1749388238416,-480.0,0.00019178,2]
[364997387,1749388238425,-2381.96,0.00019178,2]
[364997388,1749388238434,-480.0,0.00019178,2]
[364997389,1749388238444,-480.0,0.00019178,2]
[364997390,1749388238453,-480.0,0.00019178,2]
[364997391,1749388238463,-480.0,0.00019178,2]
[364997392,1749388238473,-480.0,0.00019178,2]
[364997393,1749388238483,-480.0,0.00019178,2]
[364997394,1749388238492,-480.0,0.00019178,2]
[364997395,1749388238505,-480.0,0.00019178,2]
[364997396,1749388238514,-480.0,0.00019178,2]
[364997397,1749388238524,-858.09,0.00019178,2]
[364997398,1749388238533,-282.18765376,0.00019178,2]
[364997399,1749388238543,-1064.32,0.000192,2]
[364997400,1749388238553,-727.9719,0.00019242,2]
[364997401,1749388238562,-160.39975319,0.00019242,2]
[364997402,1749388238572,-158.8834408,0.00019242,2]
[364997404,1749388238582,-160.39975313,0.00019324,2]
[364997406,1749388238592,-167.33448296,0.00019341,2]
[364997408,1749388238600,-368.70375348,0.00019342,2]
[364997410,1749388238610,-480.0,0.00019342,2]
[364997412,1749388238619,-480.0,0.00019342,2]
[364997414,1749388238628,-1735.3,0.00019342,2]
[364997416,1749388238638,-480.0,0.00019342,2]
[364997417,1749388238647,-480.0,0.00019342,2]
[364997419,1749388238656,-480.0,0.00019342,2]
[364997421,1749388238666,-480.0,0.00019342,2]
[364997423,1749388238674,-480.0,0.00019342,2]
[364997425,1749388238683,-480.0,0.00019342,2]
[364997427,1749388238692,-480.0,0.00019342,2]
[364997429,1749388238701,-480.0,0.00019342,2]
[364997431,1749388238710,-480.0,0.00019342,2]
[364997433,1749388238720,-480.0,0.00019342,2]
[364997435,1749388238728,-480.0,0.00019342,2]
[364997437,1749388238738,-1792.35,0.00019342,2]
[364997439,1749388238747,-480.0,0.00019342,2]
[364997441,1749388238756,-480.0,0.00019342,2]
[364997443,1749388238765,-778.86,0.00019342,2]
[364997445,1749388238774,-480.0,0.00019342,2]
[364997447,1749388238783,-480.0,0.00019342,2]
[364997449,1749388238792,-1065.98,0.00019342,2]
[364997451,1749388238801,-480.0,0.00019342,2]
[364997453,1749388238810,-480.0,0.00019342,2]
[364997454,1749388238819,-495.19,0.00019342,2]
[364997456,1749388238827,-480.0,0.00019342,2]
[364997458,1749388238836,-1929.26,0.00019342,2]
[364997460,1749388238846,-480.0,0.00019342,2]
[364997462,1749388238855,-1743.8,0.00019342,2]
[364997464,1749388238864,-840.89,0.00019342,2]
[364997466,1749388238873,-480.0,0.00019342,2]
[364997468,1749388238882,-480.0,0.00019342,2]
[364997470,1749388238891,-480.0,0.00019342,2]
[364997472,1749388238901,-480.0,0.00019342,2]
[364997474,1749388238910,-480.0,0.00019342,2]
[364997476,1749388238919,-480.0,0.00019342,2]
[364997478,1749388238929,-480.0,0.00019342,2]
[364997480,1749388238939,-480.0,0.00019342,2]
[364997482,1749388238948,-748.22,0.00019342,2]
[364997484,1749388238957,-480.0,0.00019342,2]
[364997486,1749388238966,-2645.5,0.00019342,2]
[364997488,1749388238975,-1381.4,0.00019342,2]
[364997490,1749388238984,-480.0,0.00019342,2]
[364997492,1749388238994,-958.86,0.00019342,2]
[364997494,1749388239003,-480.0,0.00019342,2]
[364997496,1749388239012,-480.0,0.00019342,2]
[364997498,1749388239021,-480.0,0.00019342,2]
[364997500,1749388239030,-6361.84885225,0.00019342,2]
[364997605,1749388240068,-10346.6728968,0.00019342,2]
[364997617,1749388240177,-10578.0,0.00019342,2]
[364998189,1749388246103,-480.0,0.00019178,2]
[364998191,1749388246113,-480.0,0.00019178,2]
[364998193,1749388246123,-480.0,0.00019178,2]
[364998195,1749388246132,-269.2545049,0.00019342,2]
[364998197,1749388246143,-2023.35419834,0.00019342,2]
[364999930,1749389226920,471.29,0.00016136,2]
[364999935,1749389327620,232.72,0.00013699,2]
[364999946,1749389431995,-162.64720164,0.00017742,2]
[364999947,1749389432006,-256.9885685,0.00017765,2]
[364999948,1749389432055,-1615.21051059,0.00017765,2]
[364999949,1749389432229,-405.55234091,0.00017765,2]
[364999950,1749389432240,-876.7868886,0.00018062,2]
[364999951,1749389432344,-123.2131114,0.00018062,2]
[364999953,1749389432354,-206.0,0.0001814,2]
[364999955,1749389432364,-211.0,0.00018248,2]
[364999957,1749389432374,-206.0,0.0001832,2]
[364999960,1749389432384,-301.5868886,0.000184,2]
[365000005,1749389438104,-169.7031114,0.000184,2]
[365000006,1749389438114,-206.0,0.0001851,2]
[365000007,1749389438123,-151.0,0.00018556,2]
[365000008,1749389438132,-207.4,0.00018556,2]
[365000009,1749389438141,-300.0,0.00018556,2]
[365000010,1749389438150,-179.63,0.00018606,2]
[365000011,1749389438160,-206.0,0.000187,2]
[365000012,1749389438168,-301.22,0.00018797,2]
[365000013,1749389438177,-301.46,0.000188,2]
[365000014,1749389438187,-300.0,0.00018809,2]
[365000015,1749389438195,-994.53649602,0.0001881,30]
[365000016,1749389438216,-517.29396528,0.0001881,30]
[365000212,1749389440541,-3494.7220687,0.0001881,30]
[365000213,1749389440550,-303.42,0.00018814,2]
[365000215,1749389440559,-303.6,0.00018846,2]
[365000217,1749389440569,-206.0,0.0001888,2]
[365000219,1749389440578,-10108.38887939,0.00019,2]
[365000221,1749389440587,-250.0,0.00019,2]
[365000223,1749389440596,-1722.26905191,0.00019042,2]
[365000760,1749389446194,-891.31129542,0.00019042,2]
[365000763,1749389446205,-3030.8921282,0.00019042,2]
[365001422,1749389682940,150.0,0.00017051,2]
[365001423,1749390158932,514.392,0.00017041,2]
[365001426,1749390382838,446.34,0.00016214,2]
[365001431,1749390632112,-1520.58,0.00018193,2]
[365001432,1749390632122,-1000.0,0.00018199,2]
[365001433,1749390632132,-446.34,0.00018478,2]
[365001434,1749390632141,-250.75256592,0.00018855,2]
[365001435,1749390632150,-500.0,0.00018986,2]
[365001436,1749390632159,-300.0,0.00019026,2]
[365001437,1749390632168,-1200.0,0.00019026,2]
[365001438,1749390632177,-151.0,0.00019027,2]
[365001439,1749390632187,-500.0,0.00019027,2]
[365001440,1749390632198,-500.0,0.00019027,2]
[365001441,1749390632207,-500.0,0.00019027,2]
[365001442,1749390632216,-500.0,0.00019027,2]
[365001443,1749390632226,-500.0,0.00019027,2]
[365001444,1749390632235,-784.07129256,0.00019027,2]
[365001445,1749390632245,-500.0,0.00019027,2]
[365001446,1749390632255,-281.91730621,0.00019027,2]
[365001447,1749390632264,-151.0,0.00019027,2]
[365001448,1749390632273,-151.0,0.00019027,2]
[365001449,1749390632282,-151.0,0.00019027,2]
[365001450,1749390632292,-151.0,0.00019027,2]
[365001451,1749390632301,-290.0,0.00019027,2]
[365001452,1749390632311,-207.4,0.00019027,2]
[365001453,1749390632321,-300.0,0.00019029,2]
[365001454,1749390632331,-500.55,0.00019039,2]
[365001455,1749390632340,-493.44,0.00019039,2]
[365001456,1749390632350,-300.63,0.00019039,2]
[365001457,1749390632359,-151.67,0.00019039,2]
[365001458,1749390632368,-509.77,0.00019039,2]
[365001459,1749390632378,-508.77,0.00019039,2]
[365001460,1749390632387,-507.8,0.00019039,2]
[365001461,1749390632396,-303.77,0.00019039,2]
[365001462,1749390632405,-509.71,0.00019039,2]
[365001463,1749390632415,-296.62918167,0.00019039,2]
[365001464,1749390632427,-197.38081833,0.00019039,2]
[365001465,1749390632436,-501.27,0.00019039,2]
[365001466,1749390632447,-277.27880764,0.00019039,2]
[365001467,1749390632458,-25.02119236,0.00019039,2]
[365001468,1749390632468,-152.4,0.00019039,2]
[365001469,1749390632477,-502.12,0.00019039,2]
[365001470,1749390632487,-509.63,0.00019039,2]
[365001471,1749390632496,-303.76,0.00019039,2]
[365001472,1749390632506,-491.53,0.00019039,2]
[365001473,1749390632515,-501.05,0.00019039,2]
[365001474,1749390632525,-2.47864632,0.00019039,2]
[365001475,1749390632536,-264.29088182,0.00019039,2]
[365001476,1749390632548,-236.45047186,0.00019039,2]
[365001477,1749390632558,-300.73,0.00019039,2]
[365001478,1749390632567,-152.14,0.00019039,2]
[365001479,1749390632577,-501.7,0.00019039,2]
[365001481,1749390632586,-503.77,0.00019039,2]
[365001482,1749390632596,-493.56,0.00019039,2]
[365001484,1749390632606,-305.56,0.00019039,2]
[365001487,1749390632615,-496.03,0.00019039,2]
[365001490,1749390632624,-127.18892314,0.00019039,2]
[365001493,1749390632640,-336.66692717,0.00019039,2]
[365001501,1749390638032,-39.15414969,0.00019039,2]
[365001503,1749390638042,-496.67,0.00019039,2]
[365001504,1749390638051,-302.93,0.00019039,2]
[365001506,1749390638060,-150.76,0.00019039,2]
[365001507,1749390638070,-509.88,0.00019039,2]
[365001509,1749390638079,-493.06,0.00019039,2]
[365001510,1749390638088,-490.86,0.00019039,2]
[365001512,1749390638098,-304.01,0.00019039,2]
[365001513,1749390638107,-499.34,0.00019039,2]
[365001514,1749390638116,-497.34,0.00019039,2]
[365001515,1749390638126,-304.03,0.00019039,2]
[365001516,1749390638138,-499.22,0.00019039,2]
[365001517,1749390638147,-151.73,0.00019039,2]
[365001518,1749390638157,-305.46,0.00019039,2]
[365001519,1749390638166,-303.95,0.00019039,2]
[365001520,1749390638175,-508.45,0.00019039,2]
[365001521,1749390638184,-496.2,0.00019039,2]
[365001522,1749390638195,-506.17,0.00019039,2]
[365001523,1749390638205,-507.7,0.00019039,2]
[365001524,1749390638215,-495.97,0.00019039,2]
[365001525,1749390638225,-505.79,0.00019039,2]
[365001526,1749390638234,-503.34,0.00019041,2]
[365001527,1749390638244,-492.86,0.00019042,2]
[365001528,1749390638253,-206.0,0.0001907,2]
[365001529,1749390638262,-160.39975313,0.00019078,2]
[365001530,1749390638271,-153.20903222,0.00019078,2]
[365001531,1749390638280,-990.753372,0.00019115,2]
[365001532,1749390638290,-480.0,0.00019178,2]
[365001533,1749390638300,-480.0,0.00019178,2]
[365001534,1749390638309,-480.0,0.00019178,2]
[365001535,1749390638318,-1770.4762406,0.00019178,2]
[365001536,1749390638327,-1770.4762406,0.00019178,2]
[365001537,1749390638336,-1770.4762406,0.00019178,2]
[365001538,1749390638345,-1770.4762406,0.00019178,2]
[365001539,1749390638354,-1770.4762406,0.00019178,2]
[365001540,1749390638364,-1770.4762406,0.00019178,2]
[365001541,1749390638373,-1770.4762406,0.00019178,2]
[365001542,1749390638382,-1770.4762406,0.00019178,2]
[365001543,1749390638391,-1770.4762406,0.00019178,2]
[365001544,1749390638400,-1770.4762406,0.00019178,2]
[365001545,1749390638409,-1770.4762406,0.00019178,2]
[365001547,1749390638419,-1770.4762406,0.00019178,2]
[365001549,1749390638427,-1770.4762406,0.00019178,2]
[365001551,1749390638437,-1770.4762406,0.00019178,2]
[365001552,1749390638446,-1770.4762406,0.00019178,2]
[365001554,1749390638455,-1770.4762406,0.00019178,2]
[365001556,1749390638464,-1770.4762406,0.00019178,2]
[365001558,1749390638473,-1770.4762406,0.00019178,2]
[365001560,1749390638483,-1770.4762406,0.00019178,2]
[365001562,1749390638492,-1770.4762406,0.00019178,2]
[365001564,1749390638502,-1770.4762406,0.00019178,2]
[365001566,1749390638511,-1770.4762406,0.00019178,2]
[365001568,1749390638520,-1770.4762406,0.00019178,2]
[365001570,1749390638530,-1770.4762406,0.00019178,2]
[365001572,1749390638539,-1770.4762406,0.00019178,2]
[365001574,1749390638548,-1770.4762406,0.00019178,2]
[365001576,1749390638558,-1591.81067614,0.00019178,2]
[365001579,1749390638579,-178.66556446,0.00019178,2]
[365001581,1749390638588,-1664.19363931,0.00019178,2]
[365001755,1749390640277,-106.28260129,0.00019178,2]
[365001756,1749390640287,-1561.59726671,0.00019178,2]
[365001763,1749390640465,-208.87897389,0.00019178,2]
[365001765,1749390640475,-957.89102611,0.00019178,2]
[365001788,1749390640692,-812.58521449,0.00019178,2]
[365001790,1749390640702,-970.35601896,0.00019178,2]
[365001792,1749390640714,-485.03931808,0.00019178,2]
[365001794,1749390640726,-315.08090356,0.00019178,2]
[365001796,1749390640736,-1770.4762406,0.00019178,2]
[365001798,1749390640745,-1770.4762406,0.00019178,2]
[365001800,1749390640754,-1770.4762406,0.00019178,2]
[365001802,1749390640763,-1270.79037464,0.00019178,2]
[365001804,1749390640774,-458.6818484,0.00019178,2]
[365002064,1749390643399,-41.00401756,0.00019178,2]
[365002066,1749390643408,-246.93098244,0.00019178,2]
[365002343,1749390646216,-1523.54525816,0.00019178,2]
[365002345,1749390646226,-1770.4762406,0.00019178,2]
[365002347,1749390646235,-1770.4762406,0.00019178,2]
[365002349,1749390646244,-1770.4762406,0.00019178,2]
[365002350,1749390646254,-1770.4762406,0.00019178,2]
[365002352,1749390646264,-1770.4762406,0.00019178,2]
[365002354,1749390646273,-1770.4762406,0.00019178,2]
[365002356,1749390646282,-1696.62851824,0.00019178,2]
[365002421,1749390679225,228.65,0.00013699,2]
[365002422,1749390726788,2916.29122608,0.00017,2]
[365002423,1749390726808,10000.0,0.00017,2]
[365002424,1749390726831,10000.0,0.00017,2]
[365002425,1749390726851,10000.0,0.00017,2]
[365002426,1749390726873,10000.0,0.00017,2]
[365002427,1749390726894,10000.0,0.00017,2]
[365002428,1749390726916,10000.0,0.00017,2]
[365002429,1749390726935,10000.0,0.00017,2]
[365002430,1749390726956,10000.0,0.00017,2]
[365002431,1749390726976,10000.0,0.00017,2]
[365002432,1749390726995,10000.0,0.00017,2]
[365002433,1749390727015,10000.0,0.00017,2]
[365002434,1749390727037,10000.0,0.00017,2]
[365002435,1749390727056,10000.0,0.00017,2]
[365002436,1749390727076,10000.0,0.00017,2]
[365002437,1749390727096,10000.0,0.00017,2]
[365002438,1749390727116,10000.0,0.00017,2]
[365002439,1749390727136,10000.0,0.00017,2]
[365002440,1749390727350,10000.0,0.00017,2]
[365002441,1749390727372,10000.0,0.00017,2]
[365002442,1749390727394,9740.30877392,0.00017,2]
[365002444,1749391251143,259.69122608,0.00017051,2]
[365002445,1749391251165,147.83652367,0.00017051,2]
[365002446,1749391386086,460.45,0.00016248,2]
[365002447,1749391452059,211.0,0.00016423,2]
[365002448,1749391676038,217.21,0.00013699,2]
[365002453,1749391831458,-150.0,0.00018173,7]
[365002454,1749391831469,-161.87,0.0001823,2]
[365002455,1749391831517,-530.89572595,0.0001823,2]
[365002456,1749391831633,-307.23427405,0.0001823,2]
[365002457,1749391831644,-250.0,0.00018425,2]
[365002458,1749391831655,-500.0,0.00018426,2]